[Event "Live Chess"]
[Site "Chess.com"]
[Date "2023.05.21"]
[Round "-"]
[White "Tushinskiy"]
[Black "MarkLim1"]
[Result "1-0"]
[WhiteElo "2142"]
[BlackElo "1728"]
[TimeControl "300"]
[EndTime "2:40:42 PDT"]
[Termination "Tushinskiy won by resignation"]

1. d4 {[%clk 0:04:55.1]} 1... Nf6 {[%clk 0:04:59.3]} 2. c3 {[%clk 0:04:55]} 2...
e6 {[%clk 0:04:57.9]} 3. Nf3 {[%clk 0:04:54.9]} 3... b6 {[%clk 0:04:57.1]} 4.
Bf4 {[%clk 0:04:54]} 4... Ba6 {[%clk 0:04:56.2]} 5. Nbd2 {[%clk 0:04:45]} 5...
Be7 {[%clk 0:04:54.8]} 6. e4 {[%clk 0:04:41.5]} 6... Bxf1 {[%clk 0:04:53.4]} 7.
Kxf1 {[%clk 0:04:41.4]} 7... d5 {[%clk 0:04:52.6]} 8. e5 {[%clk 0:04:40.3]} 8...
Nfd7 {[%clk 0:04:51.6]} 9. h3 {[%clk 0:04:38.5]} 9... O-O {[%clk 0:04:50.5]} 10.
g4 {[%clk 0:04:37.7]} 10... c5 {[%clk 0:04:49.8]} 11. Be3 {[%clk 0:04:36.3]}
11... Nc6 {[%clk 0:04:48.7]} 12. Kg2 {[%clk 0:04:34.5]} 12... cxd4 {[%clk
0:04:44.9]} 13. cxd4 {[%clk 0:04:34.4]} 13... f6 {[%clk 0:04:44.1]} 14. exf6
{[%clk 0:04:32.3]} 14... Nxf6 {[%clk 0:04:43.2]} 15. Rc1 {[%clk 0:04:30.8]}
15... Qd6 {[%clk 0:04:38.7]} 16. Qa4 {[%clk 0:04:27.7]} 16... Rac8 {[%clk
0:04:35.2]} 17. Rc3 {[%clk 0:04:19.4]} 17... Na5 {[%clk 0:04:26.6]} 18. Rhc1
{[%clk 0:04:16]} 18... Rxc3 {[%clk 0:04:24.7]} 19. Rxc3 {[%clk 0:04:15.9]} 19...
h6 {[%clk 0:04:05.9]} 20. Ne5 {[%clk 0:04:12.1]} 20... Ne4 {[%clk 0:03:58]} 21.
Nxe4 {[%clk 0:04:10.5]} 21... dxe4 {[%clk 0:03:57.2]} 22. a3 {[%clk 0:04:07.4]}
22... Bf6 {[%clk 0:03:43.9]} 23. Nd7 {[%clk 0:04:00.6]} 23... Rd8 {[%clk
0:03:35]} 24. Nxf6+ {[%clk 0:03:59.1]} 24... gxf6 {[%clk 0:03:34]} 25. b4 {[%clk
0:03:58.4]} 25... Nb7 {[%clk 0:03:28.8]} 26. Qxa7 {[%clk 0:03:56]} 26... Qd5
{[%clk 0:03:23.9]} 27. Qxb6 {[%clk 0:03:51.2]} 27... f5 {[%clk 0:03:19.8]} 28.
Rc7 {[%clk 0:03:42.9]} 28... Rd7 {[%clk 0:03:15.1]} 29. Rxd7 {[%clk 0:03:37.1]}
29... Qxd7 {[%clk 0:03:13.1]} 30. gxf5 {[%clk 0:03:36.3]} 30... exf5 {[%clk
0:03:11.4]} 31. Qxh6 {[%clk 0:03:33.7]} 31... Nd6 {[%clk 0:03:05.7]} 32. Bf4
{[%clk 0:03:24.2]} 32... Nf7 {[%clk 0:03:04.1]} 33. Qg6+ {[%clk 0:03:22.5]}
33... Kf8 {[%clk 0:03:03.2]} 34. Be5 {[%clk 0:03:15.1]} 34... Qe7 {[%clk
0:02:54.3]} 35. Bf6 {[%clk 0:03:05.5]} 35... Qb7 {[%clk 0:02:47]} 36. Qg7+
{[%clk 0:03:01.1]} 36... Ke8 {[%clk 0:02:45.9]} 37. Qg8+ {[%clk 0:03:00.4]} 1-0

[Event "Live Chess"]
[Site "Chess.com"]
[Date "2023.05.21"]
[Round "-"]
[White "Singapourfeuj"]
[Black "Tilbs_12"]
[Result "1-0"]
[WhiteElo "2193"]
[BlackElo "1572"]
[TimeControl "300"]
[EndTime "2:40:50 PDT"]
[Termination "Singapourfeuj won by resignation"]

1. d4 {[%clk 0:04:59]} 1... d5 {[%clk 0:04:54.3]} 2. Nf3 {[%clk 0:04:58]} 2...
Nf6 {[%clk 0:04:52.9]} 3. g3 {[%clk 0:04:57.1]} 3... g6 {[%clk 0:04:50.6]} 4.
Bg2 {[%clk 0:04:56.4]} 4... Bg7 {[%clk 0:04:49.8]} 5. O-O {[%clk 0:04:55.3]}
5... O-O {[%clk 0:04:47.1]} 6. Nbd2 {[%clk 0:04:51.2]} 6... c6 {[%clk
0:04:46.4]} 7. c4 {[%clk 0:04:49.7]} 7... Re8 {[%clk 0:04:44.9]} 8. Re1 {[%clk
0:04:47.5]} 8... Bg4 {[%clk 0:04:43.1]} 9. h3 {[%clk 0:04:46.3]} 9... Bxf3
{[%clk 0:04:42.2]} 10. Nxf3 {[%clk 0:04:44.9]} 10... Nbd7 {[%clk 0:04:40.8]} 11.
cxd5 {[%clk 0:04:43.8]} 11... cxd5 {[%clk 0:04:39]} 12. Qb3 {[%clk 0:04:42.8]}
12... b6 {[%clk 0:04:35]} 13. Ne5 {[%clk 0:04:40.1]} 13... Nxe5 {[%clk 0:04:29]}
14. dxe5 {[%clk 0:04:38.9]} 14... Ne4 {[%clk 0:04:27.4]} 15. Bf4 {[%clk
0:04:32]} 15... e6 {[%clk 0:04:23.9]} 16. Rac1 {[%clk 0:04:27.3]} 16... Nc5
{[%clk 0:04:22]} 17. Qa3 {[%clk 0:04:24.2]} 17... Nd7 {[%clk 0:04:06.3]} 18. e4
{[%clk 0:04:21.3]} 18... dxe4 {[%clk 0:03:59.5]} 19. Bxe4 {[%clk 0:04:19.7]}
19... Nc5 {[%clk 0:03:45.6]} 20. Bxa8 {[%clk 0:04:15.9]} 20... Qxa8 {[%clk
0:03:43.9]} 21. b4 {[%clk 0:04:13.7]} 21... Nd7 {[%clk 0:03:38.9]} 22. Rcd1
{[%clk 0:04:07.4]} 22... Nb8 {[%clk 0:03:26.9]} 23. Qa4 {[%clk 0:04:04.1]} 23...
Rf8 {[%clk 0:03:20.5]} 24. Rd6 {[%clk 0:04:02.2]} 24... Qb7 {[%clk 0:03:11.4]}
25. b5 {[%clk 0:03:56.2]} 25... Rc8 {[%clk 0:03:03.4]} 26. Qd4 {[%clk
0:03:53.9]} 26... Rc5 {[%clk 0:02:52.4]} 27. Rd8+ {[%clk 0:03:49.7]} 27... Bf8
{[%clk 0:02:51.3]} 28. Bh6 {[%clk 0:03:47.9]} 28... Rc8 {[%clk 0:02:42.7]} 29.
Rd1 {[%clk 0:03:41.8]} 29... Qe7 {[%clk 0:02:40.7]} 30. Bxf8 {[%clk 0:03:38.1]}
1-0

[Event "Live Chess"]
[Site "Chess.com"]
[Date "2023.05.21"]
[Round "-"]
[White "mliszewski"]
[Black "JackCheetham1"]
[Result "0-1"]
[WhiteElo "1816"]
[BlackElo "1707"]
[TimeControl "300"]
[EndTime "2:40:55 PDT"]
[Termination "JackCheetham1 won by checkmate"]

1. d4 {[%clk 0:04:58.8]} 1... Nf6 {[%clk 0:04:59.1]} 2. Bg5 {[%clk 0:04:57.9]}
2... e6 {[%clk 0:04:58]} 3. Nd2 {[%clk 0:04:56.4]} 3... d5 {[%clk 0:04:57.4]} 4.
e3 {[%clk 0:04:55.8]} 4... c5 {[%clk 0:04:56.8]} 5. c3 {[%clk 0:04:54.5]} 5...
Be7 {[%clk 0:04:56.3]} 6. f4 {[%clk 0:04:48.6]} 6... Nc6 {[%clk 0:04:55.3]} 7.
Bd3 {[%clk 0:04:48.1]} 7... h6 {[%clk 0:04:47.1]} 8. Bh4 {[%clk 0:04:46.3]} 8...
b6 {[%clk 0:04:45.7]} 9. Ngf3 {[%clk 0:04:44.5]} 9... Bb7 {[%clk 0:04:44.8]} 10.
O-O {[%clk 0:04:43.1]} 10... O-O {[%clk 0:04:43.3]} 11. Ne5 {[%clk 0:04:41.1]}
11... Qc7 {[%clk 0:04:41.4]} 12. Qf3 {[%clk 0:04:34.6]} 12... Rfe8 {[%clk
0:04:34.4]} 13. g4 {[%clk 0:04:32.1]} 13... Nd7 {[%clk 0:04:23.8]} 14. Bxe7
{[%clk 0:04:28.3]} 14... Rxe7 {[%clk 0:04:22.9]} 15. g5 {[%clk 0:04:26.8]} 15...
Ndxe5 {[%clk 0:04:19.5]} 16. fxe5 {[%clk 0:04:25]} 16... Nxe5 {[%clk 0:03:27.5]}
17. dxe5 {[%clk 0:04:23.6]} 17... Qxe5 {[%clk 0:03:24.5]} 18. gxh6 {[%clk
0:04:17.8]} 18... d4 {[%clk 0:03:19]} 19. e4 {[%clk 0:04:08.2]} 19... Qg5+
{[%clk 0:03:13.8]} 20. Qg2 {[%clk 0:04:02.1]} 20... Qxh6 {[%clk 0:03:10.2]} 21.
Rf3 {[%clk 0:03:58.5]} 21... e5 {[%clk 0:02:59.2]} 22. cxd4 {[%clk 0:03:55.4]}
22... exd4 {[%clk 0:02:52.5]} 23. Rg3 {[%clk 0:03:53.2]} 23... Re6 {[%clk
0:02:37.4]} 24. Rf1 {[%clk 0:03:48.6]} 24... Rae8 {[%clk 0:02:30.3]} 25. Rf5
{[%clk 0:03:41.3]} 25... Re5 {[%clk 0:02:13.9]} 26. Rxe5 {[%clk 0:03:33.8]}
26... Rxe5 {[%clk 0:02:13.8]} 27. Qh3 {[%clk 0:03:30.8]} 27... Qxd2 {[%clk
0:02:09.3]} 28. Qg4 {[%clk 0:03:23.7]} 28... g6 {[%clk 0:01:58.9]} 29. h4 {[%clk
0:03:13.1]} 29... Qe1+ {[%clk 0:01:55.2]} 30. Bf1 {[%clk 0:03:10.6]} 30... Rxe4
{[%clk 0:01:38.9]} 31. Qg5 {[%clk 0:03:04.3]} 31... Kg7 {[%clk 0:01:12.3]} 32.
h5 {[%clk 0:03:02.8]} 32... Re5 {[%clk 0:01:01.3]} 33. h6+ {[%clk 0:03:00.6]}
33... Kh7 {[%clk 0:00:55.8]} 34. Qg4 {[%clk 0:02:48.8]} 34... Ba6 {[%clk
0:00:46.4]} 35. Rf3 {[%clk 0:02:44.6]} 35... Re3 {[%clk 0:00:25.7]} 36. Rxf7+
{[%clk 0:02:12.2]} 36... Kxh6 {[%clk 0:00:18.5]} 37. Qf4+ {[%clk 0:02:10.9]}
37... g5 {[%clk 0:00:13]} 38. Qf6+ {[%clk 0:02:01.8]} 38... Kh5 {[%clk
0:00:10.9]} 39. Rh7+ {[%clk 0:02:01.4]} 39... Kg4 {[%clk 0:00:09.2]} 40. Rh2
{[%clk 0:01:46.4]} 40... Rg3+ {[%clk 0:00:05.4]} 41. Rg2 {[%clk 0:01:45.6]}
41... Rxg2+ {[%clk 0:00:04.6]} 42. Kxg2 {[%clk 0:01:44.2]} 42... Qg3+ {[%clk
0:00:03.6]} 43. Kh1 {[%clk 0:01:40.9]} 43... Bb7+ {[%clk 0:00:01.7]} 44. Qf3+
{[%clk 0:01:34.1]} 44... Bxf3+ {[%clk 0:00:00.9]} 45. Bg2 {[%clk 0:01:33.3]}
45... Qxg2# {[%clk 0:00:00.8]} 0-1

[Event "Live Chess"]
[Site "Chess.com"]
[Date "2023.05.21"]
[Round "-"]
[White "LiamClery2020"]
[Black "Biranidun"]
[Result "0-1"]
[WhiteElo "1983"]
[BlackElo "2553"]
[TimeControl "300"]
[EndTime "2:41:01 PDT"]
[Termination "Biranidun won by resignation"]

1. e4 {[%clk 0:04:59.4]} 1... c5 {[%clk 0:04:57.8]} 2. Nf3 {[%clk 0:04:58.1]}
2... d6 {[%clk 0:04:57.4]} 3. Bb5+ {[%clk 0:04:57.2]} 3... Nd7 {[%clk
0:04:55.9]} 4. Bxd7+ {[%clk 0:04:56.8]} 4... Bxd7 {[%clk 0:04:55.1]} 5. O-O
{[%clk 0:04:56.7]} 5... Nf6 {[%clk 0:04:54.7]} 6. Re1 {[%clk 0:04:55.7]} 6...
Bc6 {[%clk 0:04:52.7]} 7. d3 {[%clk 0:04:52.9]} 7... e6 {[%clk 0:04:51.6]} 8.
Nc3 {[%clk 0:04:52.4]} 8... Be7 {[%clk 0:04:51.1]} 9. d4 {[%clk 0:04:51.8]} 9...
cxd4 {[%clk 0:04:50.2]} 10. Nxd4 {[%clk 0:04:51.7]} 10... Rc8 {[%clk 0:04:45.5]}
11. Nxc6 {[%clk 0:04:50.7]} 11... Rxc6 {[%clk 0:04:45.4]} 12. Bg5 {[%clk
0:04:49.8]} 12... h6 {[%clk 0:04:43.8]} 13. Bf4 {[%clk 0:04:48.6]} 13... O-O
{[%clk 0:04:42.5]} 14. Qd2 {[%clk 0:04:47.3]} 14... Qb6 {[%clk 0:04:39.8]} 15.
b3 {[%clk 0:04:33.3]} 15... Rfc8 {[%clk 0:04:21.3]} 16. Na4 {[%clk 0:04:30.6]}
16... Qa6 {[%clk 0:04:14.9]} 17. c4 {[%clk 0:04:28.6]} 17... b5 {[%clk
0:04:11.8]} 18. cxb5 {[%clk 0:04:25.6]} 18... Qxb5 {[%clk 0:04:11.7]} 19. f3
{[%clk 0:04:22.9]} 19... d5 {[%clk 0:04:09.9]} 20. e5 {[%clk 0:04:15.1]} 20...
Rc2 {[%clk 0:04:06.7]} 21. Qe3 {[%clk 0:04:07.7]} 21... Nh5 {[%clk 0:04:01.1]}
22. Rac1 {[%clk 0:04:05.5]} 22... Nxf4 {[%clk 0:03:44.5]} 23. Qxf4 {[%clk
0:04:04]} 23... Bg5 {[%clk 0:03:40.2]} 24. Rxc2 {[%clk 0:03:58]} 24... Rxc2
{[%clk 0:03:39.2]} 25. Qd4 {[%clk 0:03:48.3]} 25... Rxa2 {[%clk 0:03:33.5]} 26.
Nc3 {[%clk 0:03:47]} 26... Qxb3 {[%clk 0:03:15.8]} 27. Nxa2 {[%clk 0:03:44.2]}
27... Qxa2 {[%clk 0:03:15.7]} 28. f4 {[%clk 0:03:39.1]} 28... Bd8 {[%clk
0:03:14.2]} 29. Kh1 {[%clk 0:03:35.3]} 29... Bb6 {[%clk 0:03:13]} 30. Ra1 {[%clk
0:03:27.3]} 30... Qe2 {[%clk 0:03:03.8]} 31. Qa4 {[%clk 0:03:24.5]} 31... Kh7
{[%clk 0:02:46]} 32. Qe8 {[%clk 0:03:22.4]} 32... Qh5 {[%clk 0:02:43.2]} 33. Qa4
{[%clk 0:02:58.1]} 33... Qf5 {[%clk 0:02:38.9]} 34. Rc1 {[%clk 0:02:47]} 34...
Be3 {[%clk 0:02:33.6]} 35. Rf1 {[%clk 0:02:45.5]} 35... g5 {[%clk 0:02:25.4]}
36. g3 {[%clk 0:02:39.7]} 36... d4 {[%clk 0:02:18.1]} 37. Qxa7 {[%clk
0:02:35.4]} 37... Qe4+ {[%clk 0:02:17.1]} 0-1

[Event "Live Chess"]
[Site "Chess.com"]
[Date "2023.05.21"]
[Round "-"]
[White "Mikhail_Golubev"]
[Black "DoYouLikeCurry"]
[Result "1-0"]
[WhiteElo "2467"]
[BlackElo "1391"]
[TimeControl "300"]
[EndTime "2:41:03 PDT"]
[Termination "Mikhail_Golubev won by resignation"]

1. Na3 {[%clk 0:04:57]} 1... Nf6 {[%clk 0:04:51.8]} 2. c3 {[%clk 0:04:54.3]}
2... d6 {[%clk 0:04:46.2]} 3. Nc2 {[%clk 0:04:52.2]} 3... c5 {[%clk 0:04:41.3]}
4. g3 {[%clk 0:04:51.2]} 4... Nc6 {[%clk 0:04:39.7]} 5. Bg2 {[%clk 0:04:50.4]}
5... Bd7 {[%clk 0:04:36.3]} 6. f4 {[%clk 0:04:48.7]} 6... g6 {[%clk 0:04:34.9]}
7. Nf3 {[%clk 0:04:47.7]} 7... Bg7 {[%clk 0:04:33]} 8. d3 {[%clk 0:04:45.3]}
8... Qb6 {[%clk 0:04:25.9]} 9. O-O {[%clk 0:04:41.3]} 9... O-O {[%clk
0:04:22.9]} 10. Kh1 {[%clk 0:04:39.9]} 10... Rac8 {[%clk 0:04:18.2]} 11. e4
{[%clk 0:04:38.8]} 11... e5 {[%clk 0:04:03.7]} 12. f5 {[%clk 0:04:37.8]} 12...
Ne7 {[%clk 0:03:43]} 13. Nh4 {[%clk 0:04:32.4]} 13... c4 {[%clk 0:03:36.3]} 14.
d4 {[%clk 0:04:24.5]} 14... Bc6 {[%clk 0:03:21.3]} 15. d5 {[%clk 0:04:15.6]}
15... Bd7 {[%clk 0:03:16.8]} 16. g4 {[%clk 0:04:12.7]} 16... Rfe8 {[%clk
0:02:49.7]} 17. g5 {[%clk 0:04:10.2]} 17... Nh5 {[%clk 0:02:44.8]} 18. f6 {[%clk
0:04:09.4]} 18... Bxf6 {[%clk 0:02:40.7]} 19. gxf6 {[%clk 0:04:09.3]} 19... Nxf6
{[%clk 0:02:36.7]} 20. Rxf6 {[%clk 0:04:07.7]} 1-0

[Event "Live Chess"]
[Site "Chess.com"]
[Date "2023.05.21"]
[Round "-"]
[White "siddu198"]
[Black "hunany_3"]
[Result "1-0"]
[WhiteElo "1622"]
[BlackElo "1719"]
[TimeControl "300"]
[EndTime "2:41:04 PDT"]
[Termination "siddu198 won by resignation"]

1. e4 {[%clk 0:04:59.1]} 1... e5 {[%clk 0:04:59]} 2. Nf3 {[%clk 0:04:58]} 2...
Nc6 {[%clk 0:04:58.5]} 3. Bb5 {[%clk 0:04:57]} 3... a6 {[%clk 0:04:57.6]} 4. Ba4
{[%clk 0:04:56]} 4... Nf6 {[%clk 0:04:57.1]} 5. Nc3 {[%clk 0:04:54.6]} 5... b5
{[%clk 0:04:55]} 6. Bb3 {[%clk 0:04:53.5]} 6... Be7 {[%clk 0:04:54.3]} 7. d3
{[%clk 0:04:52.5]} 7... O-O {[%clk 0:04:50.8]} 8. O-O {[%clk 0:04:50.3]} 8... d6
{[%clk 0:04:46.5]} 9. h3 {[%clk 0:04:49.2]} 9... Bb7 {[%clk 0:04:41.9]} 10. Bg5
{[%clk 0:04:48.2]} 10... h6 {[%clk 0:04:40.3]} 11. Bh4 {[%clk 0:04:46.6]} 11...
Na5 {[%clk 0:04:33.3]} 12. Qd2 {[%clk 0:04:43.5]} 12... c5 {[%clk 0:04:26]} 13.
Rae1 {[%clk 0:04:29.6]} 13... Nxb3 {[%clk 0:04:22.1]} 14. axb3 {[%clk
0:04:28.5]} 14... b4 {[%clk 0:04:00.8]} 15. Na4 {[%clk 0:04:19.7]} 15... Bc6
{[%clk 0:03:55.8]} 16. Ra1 {[%clk 0:04:15.6]} 16... a5 {[%clk 0:03:50.2]} 17. c3
{[%clk 0:04:14.3]} 17... Nh5 {[%clk 0:03:37.5]} 18. Bxe7 {[%clk 0:04:08.1]}
18... Qxe7 {[%clk 0:03:37.4]} 19. Nb6 {[%clk 0:04:01.1]} 19... Ra6 {[%clk
0:03:30.7]} 20. Nd5 {[%clk 0:03:59.6]} 20... Bxd5 {[%clk 0:03:27.9]} 21. exd5
{[%clk 0:03:58.8]} 21... Nf4 {[%clk 0:03:24.7]} 22. Rfe1 {[%clk 0:03:55.4]}
22... Nxd5 {[%clk 0:03:14.9]} 23. c4 {[%clk 0:03:52.6]} 23... Nf4 {[%clk
0:03:08]} 24. Qxf4 {[%clk 0:03:51.5]} 24... exf4 {[%clk 0:02:54.3]} 25. Rxe7
{[%clk 0:03:47.1]} 25... g5 {[%clk 0:02:48.9]} 26. g4 {[%clk 0:03:28.1]} 26...
Rfa8 {[%clk 0:02:38.8]} 27. Ra4 {[%clk 0:03:25.6]} 27... Kg7 {[%clk 0:02:32]}
28. Re1 {[%clk 0:03:07.2]} 28... Rd8 {[%clk 0:02:26.9]} 29. h4 {[%clk
0:03:02.8]} 29... Kf6 {[%clk 0:02:15.8]} 30. hxg5+ {[%clk 0:02:56.5]} 30... hxg5
{[%clk 0:02:15.7]} 31. d4 {[%clk 0:02:56]} 31... Kg6 {[%clk 0:01:58.6]} 32. dxc5
{[%clk 0:02:47.8]} 32... dxc5 {[%clk 0:01:58.5]} 33. Re5 {[%clk 0:02:46.8]}
33... Rd1+ {[%clk 0:01:42]} 34. Kg2 {[%clk 0:02:44.5]} 34... Rb1 {[%clk
0:01:31.9]} 35. Rxg5+ {[%clk 0:02:43.3]} 35... Kf6 {[%clk 0:01:30]} 36. Rxc5
{[%clk 0:02:30]} 36... Rxb2 {[%clk 0:01:29.2]} 37. Rcxa5 {[%clk 0:02:29.6]}
37... Rxa5 {[%clk 0:01:28.3]} 38. Rxa5 {[%clk 0:02:28.7]} 38... Rxb3 {[%clk
0:01:27.9]} 39. c5 {[%clk 0:02:24.4]} 39... Rc3 {[%clk 0:01:27]} 40. Ra6+ {[%clk
0:02:16]} 40... Ke7 {[%clk 0:01:23.9]} 41. Nd4 {[%clk 0:02:03.7]} 41... Rxc5
{[%clk 0:01:12.1]} 42. Nc6+ {[%clk 0:01:57.9]} 42... Kd7 {[%clk 0:01:01.2]} 43.
Nxb4 {[%clk 0:01:55.3]} 43... Rg5 {[%clk 0:00:54.3]} 44. Kf3 {[%clk 0:01:53.2]}
44... f5 {[%clk 0:00:47.2]} 45. gxf5 {[%clk 0:01:40]} 45... Rxf5 {[%clk
0:00:47.1]} 46. Nd3 {[%clk 0:01:39.4]} 46... Ke7 {[%clk 0:00:38.8]} 47. Nxf4
{[%clk 0:01:37.4]} 47... Kd7 {[%clk 0:00:37.2]} 48. Ke4 {[%clk 0:01:34.7]} 48...
Rf8 {[%clk 0:00:33.6]} 49. Nd3 {[%clk 0:01:31.9]} 49... Re8+ {[%clk 0:00:31.2]}
50. Kd4 {[%clk 0:01:30.7]} 50... Rf8 {[%clk 0:00:26.3]} 51. f4 {[%clk
0:01:28.7]} 51... Kc7 {[%clk 0:00:24.1]} 52. Re6 {[%clk 0:01:22.8]} 52... Kd7
{[%clk 0:00:23.6]} 53. Nc5+ {[%clk 0:01:20.6]} 53... Kd8 {[%clk 0:00:19.4]} 54.
Ke5 {[%clk 0:01:19.1]} 54... Kc7 {[%clk 0:00:16]} 55. f5 {[%clk 0:01:16.2]}
55... Rf7 {[%clk 0:00:13.1]} 56. f6 {[%clk 0:01:13.6]} 56... Rf8 {[%clk
0:00:11.9]} 57. Re7+ {[%clk 0:01:09.1]} 57... Kc6 {[%clk 0:00:10.8]} 58. Ne4
{[%clk 0:01:01.4]} 58... Rg8 {[%clk 0:00:07]} 59. f7 {[%clk 0:00:59]} 59... Rg7
{[%clk 0:00:06.2]} 60. f8=Q {[%clk 0:00:56]} 1-0

[Event "Live Chess"]
[Site "Chess.com"]
[Date "2023.05.21"]
[Round "-"]
[White "maxmlynek"]
[Black "Duke_of_Bebington"]
[Result "1-0"]
[WhiteElo "1909"]
[BlackElo "1586"]
[TimeControl "300"]
[EndTime "2:41:05 PDT"]
[Termination "maxmlynek won by checkmate"]

1. e4 {[%clk 0:04:55.9]} 1... e5 {[%clk 0:04:58.4]} 2. Nf3 {[%clk 0:04:31.9]}
2... Nf6 {[%clk 0:04:56]} 3. Nc3 {[%clk 0:04:29.8]} 3... Nc6 {[%clk 0:04:54.2]}
4. d3 {[%clk 0:04:13.9]} 4... d5 {[%clk 0:04:40]} 5. exd5 {[%clk 0:04:07.7]}
5... Nxd5 {[%clk 0:04:39.9]} 6. Bd2 {[%clk 0:04:06.2]} 6... Be6 {[%clk
0:04:36.1]} 7. Be2 {[%clk 0:03:48.1]} 7... Be7 {[%clk 0:04:33]} 8. O-O {[%clk
0:03:35.9]} 8... h5 {[%clk 0:04:30.2]} 9. Re1 {[%clk 0:03:25.2]} 9... h4 {[%clk
0:04:28.5]} 10. Bf1 {[%clk 0:03:24]} 10... f6 {[%clk 0:04:16.4]} 11. Nxd5 {[%clk
0:03:15.6]} 11... Bxd5 {[%clk 0:04:08.3]} 12. c4 {[%clk 0:03:14.3]} 12... Be6
{[%clk 0:04:05.3]} 13. b4 {[%clk 0:03:01.9]} 13... h3 {[%clk 0:03:50.3]} 14. b5
{[%clk 0:02:58.7]} 14... hxg2 {[%clk 0:03:46.6]} 15. Bxg2 {[%clk 0:02:56.3]}
15... Nd4 {[%clk 0:03:45.4]} 16. Nxd4 {[%clk 0:02:55.2]} 16... Qxd4 {[%clk
0:03:44]} 17. Be3 {[%clk 0:02:54.4]} 17... Qh4 {[%clk 0:03:39]} 18. Bxb7 {[%clk
0:02:43.1]} 18... Qxh2+ {[%clk 0:03:33.3]} 19. Kf1 {[%clk 0:02:42.3]} 19... Bh3+
{[%clk 0:03:30]} 20. Ke2 {[%clk 0:02:41]} 20... Bg4+ {[%clk 0:03:26.6]} 21. Bf3
{[%clk 0:02:39.5]} 21... Bxf3+ {[%clk 0:03:19.7]} 22. Kxf3 {[%clk 0:02:39.4]}
22... Qh5+ {[%clk 0:03:15.1]} 23. Ke4 {[%clk 0:02:33.2]} 23... f5+ {[%clk
0:03:04.7]} 24. Kxe5 {[%clk 0:02:23]} 24... Bf6+ {[%clk 0:02:56.9]} 25. Kd5
{[%clk 0:02:17.2]} 25... Qf7+ {[%clk 0:02:43.2]} 26. Kc5 {[%clk 0:02:09.9]}
26... Qe7+ {[%clk 0:02:39.2]} 27. Kc6 {[%clk 0:02:04.5]} 27... Qd7+ {[%clk
0:02:22.7]} 28. Kb7 {[%clk 0:01:55.2]} 28... Qc8+ {[%clk 0:02:17.8]} 29. Kc6
{[%clk 0:01:52]} 29... O-O {[%clk 0:02:04.4]} 30. Bc5 {[%clk 0:01:37.4]} 30...
Rd8 {[%clk 0:01:52.5]} 31. Rc1 {[%clk 0:01:26]} 31... Qd7+ {[%clk 0:01:48.4]}
32. Kb7 {[%clk 0:01:22.6]} 32... Rab8+ {[%clk 0:01:45.5]} 33. Ka6 {[%clk
0:01:21.3]} 33... Bd4 {[%clk 0:01:16.8]} 34. Re7 {[%clk 0:01:06.7]} 34... Qc8+
{[%clk 0:01:15.4]} 35. Ka5 {[%clk 0:01:02.4]} 35... Bxc5 {[%clk 0:01:14.5]} 36.
Rxg7+ {[%clk 0:00:58.1]} 36... Kxg7 {[%clk 0:01:13]} 37. Qg1+ {[%clk 0:00:55.9]}
37... Kf6 {[%clk 0:01:10.3]} 38. Qg3 {[%clk 0:00:43.9]} 38... Rg8 {[%clk
0:01:02.1]} 39. Qh4+ {[%clk 0:00:42.6]} 39... Ke6 {[%clk 0:00:58.5]} 40. Re1+
{[%clk 0:00:41]} 40... Kd7 {[%clk 0:00:54.2]} 41. Qh7+ {[%clk 0:00:35.5]} 41...
Kd6 {[%clk 0:00:43.9]} 42. Qh6+ {[%clk 0:00:30.6]} 42... Kd7 {[%clk 0:00:38.1]}
43. Qe6+ {[%clk 0:00:29.2]} 43... Kd8 {[%clk 0:00:36.2]} 44. Qxg8+ {[%clk
0:00:27]} 44... Kd7 {[%clk 0:00:34.7]} 45. Qe6+ {[%clk 0:00:24.5]} 45... Kd8
{[%clk 0:00:33.6]} 46. Qe8# {[%clk 0:00:24.1]} 1-0